Cogmind - Beta 9.3 --- EXPLORER MODE // 2020.01.01 @ 20:19:56 // Winter2019/RPGLIKE Player: Tob Nok Result: Destroyed by Lightning with EMDS Performance ------------- Evolutions (5) 2500 Regions Visited (14) 2800 Robots Destroyed (162) 810 Value Destroyed (6956) 6956 Prototype IDs (6) 120 Alien Tech Used (0) 0 Bonus (182) 182 TOTAL SCORE: 13368 Bonus ------- High Alert Combat Kills 24 Follower Combat Kills 961 Network Hubs Disabled 200 Met R17 at Cetus 500 Friendly Fire -1503 Cogmind --------- Core Integrity 0/1050 Matter 781/900 Energy 810/810 System Corruption 11% Temperature Cool (6) Movement Rolling (110) Ox1 Location -5/Hub_04(d) Parts ------- > --- POWER (3) -------- Heavy Deuterium Engine Angular Momentum Engine > --- PROPULSION (4) --- Armored Huge Wheel Armored Huge Wheel > --- UTILITY (5) ------ Advanced Matter Compressor Improved Signal Interpreter Improved Kinecellerator Advanced Transmission Jammer Advanced ECM Suite > --- WEAPON (4) ------- Enhanced Coil Gun Improved KE Penetrator Enhanced Gauss Cannon Linear Accelerator > --- INVENTORY (4) ---- Nuclear Core Matter Filter Improved ECM Suite Magnetic Acceleration Cannon Peak State ------------ > --- POWER ------------ Heavy Deuterium Engine Angular Momentum Engine Neutrino Core > --- PROPULSION ------- Armored Huge Wheel Armored Huge Wheel > --- UTILITY ---------- Advanced Matter Compressor Improved Signal Interpreter Improved Kinecellerator Advanced Transmission Jammer Advanced ECM Suite > --- WEAPON ----------- Heavy Battle Rifle Enhanced Coil Gun Enhanced Gauss Cannon Linear Accelerator > --- INVENTORY -------- Nuclear Core Matter Filter Improved ECM Suite Magnetic Acceleration Cannon [Rating: 86] Favorites ----------- Power Angular Momentum Engine Engine Angular Momentum Engine Power Core Nuclear Core Propulsion Armored Huge Wheel Leg Aluminum Leg Wheel Armored Huge Wheel Flight Unit Nuclear Pulse Thruster Utility Improved Signal Interpreter Device Advanced Transmission Jammer Storage Advanced Matter Compressor Processor Improved Signal Interpreter Protection Medium Armor Plating Weapon Linear Accelerator Energy Gun Particle Gun Ballistic Gun Minigun Ballistic Cannon Linear Accelerator Build | -11 -10 -9 -8 -7 -6 -6 -6 -5 -5 -5 -5 -5 -5 -5 ------- Run | Scr Mat Mat Mat Fac Fac Low Low Fac Was Fac Ext Cet Arc Hub Slots Evolved 12 | 3 . 3 2 1 2 . . 1 . . . . . . Power 2 | . . 1 . . . . . 1 . . . . . . Propulsion 3 | 1 . . 1 . 1 . . . . . . . . . Utility 4 | 1 . 2 . . 1 . . . . . . . . . Weapon 3 | 1 . . 1 1 . . . . . . . . . . Parts Attached 76 | 8 9 8 7 7 25 2 . 4 . 1 4 1 . . Power 22 | 1 2 1 4 1 12 . . . . 1 . . . . Engine 13 | 1 2 1 3 1 5 . . . . . . . . . Core 9 | . . . 1 . 7 . . . . 1 . . . . Reactor . | . . . . . . . . . . . . . . . Propulsion 12 | 2 2 2 1 1 4 . . . . . . . . . Treads . | . . . . . . . . . . . . . . . Leg 2 | 2 . . . . . . . . . . . . . . Wheel 9 | . 2 2 1 1 3 . . . . . . . . . Hover . | . . . . . . . . . . . . . . . Flight 1 | . . . . . 1 . . . . . . . . . Utility 23 | 3 2 3 1 3 6 1 . 1 . . 3 . . . Device 13 | 1 . . 1 2 5 1 . 1 . . 2 . . . Storage 1 | . . . . . . . . . . . 1 . . . Processor 7 | 1 2 2 . 1 1 . . . . . . . . . Hackware . | . . . . . . . . . . . . . . . Protection 2 | 1 . 1 . . . . . . . . . . . . Artifact . | . . . . . . . . . . . . . . . Weapon 19 | 2 3 2 1 2 3 1 . 3 . . 1 1 . . Energy Gun 3 | . . . 1 2 . . . . . . . . . . Energy Cannon . | . . . . . . . . . . . . . . . Ballistic Gun 11 | 2 3 1 . . 2 . . 1 . . 1 1 . . Ballistic Cannon 5 | . . 1 . . 1 1 . 2 . . . . . . Launcher . | . . . . . . . . . . . . . . . Special Weapon . | . . . . . . . . . . . . . . . Impact Weapon . | . . . . . . . . . . . . . . . Slashing Weapon . | . . . . . . . . . . . . . . . Piercing Weapon . | . . . . . . . . . . . . . . . Special Melee Weapon . | . . . . . . . . . . . . . . . Unidentified Prototypes 4 | . . . . . 1 . . 1 . . 1 1 . . Parts Lost 2 | . . . . . . . . . . . . 2 . . Power 1 | . . . . . . . . . . . . 1 . . Propulsion . | . . . . . . . . . . . . . . . Utility . | . . . . . . . . . . . . . . . Weapon 1 | . . . . . . . . . . . . 1 . . Highest Loss Streak 2 | . . . . . . . . . . . . 2 . . Average Slot Usage (%) 89 | . 94 95 95 99 90 83 86 80 81 85 87 85 81 81 Engine 10 | . 13 16 12 7 7 13 13 12 12 12 12 12 12 12 Core 4 | . . . 3 7 5 . . . . 4 6 5 . . Wheel 15 | . 9 20 22 24 15 13 13 12 12 12 12 12 12 12 Device 21 | . 14 10 13 20 24 23 26 25 25 25 24 18 18 18 Processor 8 | . 12 19 11 8 8 6 6 6 6 6 6 6 6 6 Protection 1 | . . 9 8 3 . . . . . . . . . . Energy Gun 1 | . . . 6 8 1 . . . . . . . . . Ballistic Gun 10 | . 25 10 8 7 12 9 6 6 6 6 11 11 12 12 Ballistic Cannon 11 | . . 9 8 7 12 16 20 17 18 18 12 12 12 12 Naked Turns . | . . . . . . . . . . . . . . . Heaviest Build 82 | 10 11 25 33 37 58 61 61 68 68 82 82 80 68 68 Greatest Support 66 | 20 32 32 44 50 66 66 66 66 66 66 66 66 66 66 Greatest Overweight (x) 2 | 2 . 1 1 . 1 . . 1 1 1 1 1 1 1 Average Overweight (x) . | . . . . . . . . . 1 1 1 . 1 1 Largest Inventory Capacity 4 | 2 2 3 3 3 3 3 3 3 3 3 4 4 4 4 Average Capacity 3 | 2 2 2 3 3 3 3 3 3 3 3 3 4 4 4 Most Carried 4 | 2 2 3 3 3 3 3 3 3 3 3 4 4 4 4 Average Carried 2 | 1 1 2 2 2 2 2 3 2 3 2 3 4 4 4 Final Capacity 4 | 2 2 3 3 3 3 3 3 3 3 3 4 4 4 4 Final Carried 4 | 1 2 3 3 2 3 3 3 3 3 3 4 4 4 4 Class Distribution -------------------- 40% | Hacker-Gunner 19% | Hacker-Mutant 17% | Hacker-Skirmisher 9% | Generator-Mutant 7% | Generator-Skirmisher 4% | Generator-Gunner Dominant Class ---------------- Hacker-Mutant | -10/Materials Hacker-Mutant | -9/Materials Hacker-Skirmisher | -8/Materials Hacker-Skirmisher | -7/Factory Hacker-Gunner | -6/Factory Hacker-Gunner | -6/Lower Caves Hacker-Gunner | -6/Lower Caves Hacker-Gunner | -5/Factory Hacker-Gunner | -5/Waste Generator-Gunner | -5/Factory Generator-Skirmisher | -5/Extension Generator-Mutant | -5/Cetus Hacker-Gunner | -5/Archives Hacker-Skirmisher | -5/Hub_04(d) Resources | -11 -10 -9 -8 -7 -6 -6 -6 -5 -5 -5 -5 -5 -5 -5 ----------- Run | Scr Mat Mat Mat Fac Fac Low Low Fac Was Fac Ext Cet Arc Hub Matter Collected 4572 | 301 251 262 264 259 903 322 58 . 474 33 677 474 . 294 Remotely . | . . . . . . . . . . . . . . . Salvage Created 6070 | 50 294 224 252 433 820 146 . . 1208 189 1571 412 120 351 Parts 312 | 3 29 19 18 24 77 10 . . 8 7 51 30 10 26 Haulers Intercepted . | . . . . . . . . . . . . . . . Recyclers Shooed 6 | . . . . 1 2 . . . . . 3 . . . Parts Field Recycled . | . . . . . . . . . . . . . . . Retrieved Matter . | . . . . . . . . . . . . . . . Parts Self-Destructed . | . . . . . . . . . . . . . . . Prevented . | . . . . . . . . . . . . . . . Kills | -11 -10 -9 -8 -7 -6 -6 -6 -5 -5 -5 -5 -5 -5 -5 ------- Run | Scr Mat Mat Mat Fac Fac Low Low Fac Was Fac Ext Cet Arc Hub Combat Hostiles Destroyed 124 | . 9 11 7 10 29 5 . . 4 5 18 14 4 8 Guns 55 | . 9 2 2 3 12 3 . . 1 4 8 5 3 3 Cannons 68 | . . 9 5 7 17 2 . . 3 1 10 9 1 4 AOE 1 | . . . . . . . . . . . . . . 1 Classes Destroyed 17 | 1 3 2 1 3 1 . . . 1 1 3 . . 1 Worker 7 | . . . 1 . 3 . . . . . 1 . . 2 Builder 2 | . . . . 1 1 . . . . . . . . . Tunneler 1 | . . . . . . . . . . . 1 . . . Recycler 5 | 1 . . . 1 . . . . . . 3 . . . Operator 6 | . . 1 . . 2 . . . . . 2 . 1 . Watcher 15 | . 2 . 2 2 4 . . . . . 2 2 . 1 Swarmer 31 | . 4 3 3 . 9 . . . . 4 1 3 . 4 Grunt 37 | . 5 4 4 3 5 4 . . . . 8 4 . . Brawler 1 | . . . . . . . . . . . 1 . . . Duelist 4 | . . . . . 2 1 . . . . . 1 . . Protector 1 | . . . . . . . . . . . . . . 1 Sentry 18 | . . 4 . 2 3 . . . . . 4 . 4 1 Hunter 6 | . . . . 2 1 . . . . . 2 . . 1 Programmer 12 | . . . . 3 9 . . . . . . . . . Behemoth 2 | . . . . . . . . . . . 2 . . . Compactor 4 | . . . . . . . . . 4 . . . . . Cetus Guard 6 | . . . . . . . . . . . . 6 . . Lightning 1 | . . . . . . . . . . . . . . 1 Savage 1 | . . . . . . . . . . . 1 . . . Martyr 1 | . . . . . . . . . . 1 . . . . Guerrilla 1 | . . . . . . . . . . . 1 . . . Best Kill Streak 7 | 1 2 7 4 4 6 3 . . 2 4 4 4 4 5 Combat Bots Only 6 | . 2 6 3 3 5 3 . . 2 4 3 3 3 3 Max Kills in Single Turn 5 | 1 1 1 1 1 2 1 . . 2 1 2 2 2 5 Gunslinging . | . . . . . . . . . . . . . . . Exploded 1 | . . . . . . . . . . . . . . 1 Melee . | . . . . . . . . . . . . . . . Uniques/NPCs Destroyed . | . . . . . . . . . . . . . . . Combat | -11 -10 -9 -8 -7 -6 -6 -6 -5 -5 -5 -5 -5 -5 -5 -------- Run | Scr Mat Mat Mat Fac Fac Low Low Fac Was Fac Ext Cet Arc Hub Damage Taken 4342 | . 160 164 118 280 731 125 . . . 131 890 198 143 1402 Core 3437 | . 122 128 92 210 583 103 . . . 108 708 142 112 1129 Absorbed by Shields 260 | . . . . . . . . . . . 78 182 . . Redirected to Core 2826 | . 100 108 83 199 439 74 . . . 83 582 108 112 938 Core Remaining (%) 95 | 100 100 100 97 79 . . 97 . . . . . . . Volleys Fired 369 | 1 25 24 17 43 75 7 . . 14 5 82 41 17 18 Largest 4 | 2 2 2 3 3 4 4 . . 4 4 4 4 4 4 Hottest 206 | 40 43 69 134 134 203 188 . . 206 206 186 186 188 188 Shots Fired 830 | 2 42 38 42 88 178 28 . . 56 8 186 85 33 44 Gun 485 | 2 42 22 26 64 105 11 . . 14 5 103 39 25 27 Cannon 345 | . . 16 16 24 73 17 . . 42 3 83 46 8 17 Launcher . | . . . . . . . . . . . . . . . Special . | . . . . . . . . . . . . . . . Kinetic 775 | 2 42 38 33 59 161 28 . . 56 8 186 85 33 44 Thermal 55 | . . . 9 29 17 . . . . . . . . . Explosive . | . . . . . . . . . . . . . . . Electromagnetic . | . . . . . . . . . . . . . . . Robot Hit Streak 55 | 1 18 25 34 51 33 31 . . 24 24 40 55 28 46 Robot Miss Streak 3 | 1 1 2 3 2 3 1 . . 1 . 3 1 1 2 Penetration Max 2 | . . . . . . . . . 1 . 2 1 . 1 Secondary Targets 1 | . . . . . . . . . . . . . . 1 Max Gunslinging Chain 1 | . . . . . . . . . . . . . . 1 Shots Hit Robots 678 | 1 36 33 32 79 139 23 . . 48 7 144 73 29 34 Core Hits 356 | 1 17 28 28 43 86 21 . . 11 5 55 33 8 20 Critical Hits 41 | . . . . . . . . . 5 . 18 5 9 4 Critical Kills 13 | . . . . . . . . . 1 . 4 2 5 1 Critical Parts Destroyed 19 | . . . . . . . . . 1 . 12 2 2 2 Melee Attacks . | . . . . . . . . . . . . . . . Impact . | . . . . . . . . . . . . . . . Slashing . | . . . . . . . . . . . . . . . Piercing . | . . . . . . . . . . . . . . . Sneak Attacks . | . . . . . . . . . . . . . . . Combat Hostiles . | . . . . . . . . . . . . . . . Follow-up Attacks . | . . . . . . . . . . . . . . . Damage Inflicted 23812 | 15 484 712 586 1528 4831 680 . . 2260 267 6316 3268 1075 1790 Guns 10239 | 15 484 229 202 757 1860 213 . . 576 180 3049 1195 744 735 Cannons 12360 | . . 478 355 580 2440 467 . . 1684 87 3226 2073 331 639 Explosions 1079 | . . . . 171 510 . . . . . . . . 398 Melee . | . . . . . . . . . . . . . . . Ramming 134 | . . 5 29 20 21 . . . . . 41 . . 18 Kinetic 22080 | 15 484 707 492 1029 4154 680 . . 2260 267 6275 3268 1075 1374 Thermal 866 | . . . 65 308 493 . . . . . . . . . Explosive 292 | . . . . 171 121 . . . . . . . . . Electromagnetic 440 | . . . . . 42 . . . . . . . . 398 Impact . | . . . . . . . . . . . . . . . Slashing . | . . . . . . . . . . . . . . . Piercing . | . . . . . . . . . . . . . . . Highest Corruption 11 | . . . . 1 1 1 1 . . . . . . 11 Average Corruption 1 | . . . . 1 1 1 1 . . . . . . 4 Corruption Purged . | . . . . . . . . . . . . . . . Effects 9 | . . . . 2 1 3 1 . . . . . . 2 Message Errors 5 | . . . . 1 1 3 . . . . . . . . Energy Discharges 1 | . . . . . . . 1 . . . . . . . Data Loss (minor) 2 | . . . . 1 . . . . . . . . . 1 Weapon Failures 1 | . . . . . . . . . . . . . . 1 Overload Shots . | . . . . . . . . . . . . . . . Overflow Damage 527 | . . . . 11 360 . . . . . 133 22 1 . Projectiles 377 | . . . . 8 224 . . . . . 122 22 1 . Explosions 139 | . . . . 3 136 . . . . . . . . . Melee 11 | . . . . . . . . . . . 11 . . . Knockbacks 108 | . . 6 16 21 27 14 . . . 1 12 7 1 3 Impact . | . . . . . . . . . . . . . . . Kinetic 103 | . . 4 16 20 27 14 . . . 1 11 6 1 3 Secondary 5 | . . 2 . 1 . . . . . . 1 1 . . Self-Inflicted Damage 270 | . . 2 14 8 156 . . . . . 20 . . 70 Shots 5 | . . . . . 4 . . . . . . . . 1 Rammed 12 | . . 1 1 4 4 . . . . . 1 . . 1 Targets Rammed 12 | . . 1 1 4 4 . . . . . 1 . . 1 Kicked . | . . . . . . . . . . . . . . . Crushed . | . . . . . . . . . . . . . . . Highest Temperature 300 | . . 78 240 72 160 39 . . 300 87 201 156 18 54 Average Temperature 55 | . . 23 83 22 45 17 . . 111 46 64 63 12 20 Received Heat Transfer 954 | . 114 96 81 90 147 78 . . . 24 225 . 9 90 Siege Activations . | . . . . . . . . . . . . . . . Robots Corrupted . | . . . . . . . . . . . . . . . Combat Hostiles . | . . . . . . . . . . . . . . . Parts Fried . | . . . . . . . . . . . . . . . Impact Corruptions 2 | . . . . . . . . . . . 2 . . . Robots Melted . | . . . . . . . . . . . . . . . Combat Hostiles . | . . . . . . . . . . . . . . . Parts Melted 1 | . . . . 1 . . . . . . . . . . Heat Transferred 1199 | . . . 148 592 459 . . . . . . . . . Parts Sabotaged . | . . . . . . . . . . . . . . . Parts Stolen . | . . . . . . . . . . . . . . . Parts Stripped . | . . . . . . . . . . . . . . . Power Chain Reactions 1 | . . . . . . . . . . . . . . 1 Missiles Intercepted . | . . . . . . . . . . . . . . . Alert | -11 -10 -9 -8 -7 -6 -6 -6 -5 -5 -5 -5 -5 -5 -5 ------- Run | Scr Mat Mat Mat Fac Fac Low Low Fac Was Fac Ext Cet Arc Hub Peak Influence 536 | 5 220 241 126 276 285 . . 15 11 327 536 314 216 472 Average Influence 77 | 3 73 80 38 45 48 . . . 10 101 146 143 192 147 Maximum Alert Level 2 | . 1 1 . 1 1 . . . . 1 2 1 1 2 Low Security (%) 86 | 100 91 76 100 96 98 . . 100 100 75 65 73 24 80 Level 1 12 | . 8 23 . 3 1 . . . . 24 29 26 75 15 Level 2 . | . . . . . . . . . . . 5 . . 4 Level 3 . | . . . . . . . . . . . . . . . Level 4 . | . . . . . . . . . . . . . . . Level 5 . | . . . . . . . . . . . . . . . High Security . | . . . . . . . . . . . . . . . Max Security . | . . . . . . . . . . . . . . . Squads Dispatched 28 | . . 2 . 4 13 . . . . 2 3 1 . 3 Investigation 6 | . . 1 . . 2 . . . . . 1 1 . 1 Extermination 12 | . . . . 3 8 . . . . 1 . . . . Reinforcement 10 | . . 1 . 1 3 . . . . 1 2 . . 2 Assault . | . . . . . . . . . . . . . . . Garrison . | . . . . . . . . . . . . . . . Intercept . | . . . . . . . . . . . . . . . Construction Impeded . | . . . . . . . . . . . . . . . Haulers Reinforced . | . . . . . . . . . . . . . . . Stealth | -11 -10 -9 -8 -7 -6 -6 -6 -5 -5 -5 -5 -5 -5 -5 --------- Run | Scr Mat Mat Mat Fac Fac Low Low Fac Was Fac Ext Cet Arc Hub Distress Signals 2 | . . . . . . . . . . . . 2 . . Communications Jammed 36 | . . . . 3 2 . . . . . 9 . . 22 Distress Signals 35 | . . . . 2 2 . . . . . 9 . . 22 Times Spotted 219 | . 13 16 11 16 47 11 1 1 7 5 36 22 3 30 Peak Tracking Total 9 | . 2 4 3 4 4 3 1 1 2 2 5 5 1 9 Tactical Retreats 23 | . . . . 1 6 3 1 . 3 . 4 1 . 4 Traps | -11 -10 -9 -8 -7 -6 -6 -6 -5 -5 -5 -5 -5 -5 -5 ------- Run | Scr Mat Mat Mat Fac Fac Low Low Fac Was Fac Ext Cet Arc Hub Traps Triggered 14 | . 3 . . . 3 . . 1 . 1 5 . . 1 Indirectly . | . . . . . . . . . . . . . . . Trap Hack Attempts . | . . . . . . . . . . . . . . . Triggered . | . . . . . . . . . . . . . . . Disarmed 8 | . 8 . . . . . . . . . . . . . Reprogrammed . | . . . . . . . . . . . . . . . Reused . | . . . . . . . . . . . . . . . Traps Extracted . | . . . . . . . . . . . . . . . Installed . | . . . . . . . . . . . . . . . Triggered . | . . . . . . . . . . . . . . . Machines | -11 -10 -9 -8 -7 -6 -6 -6 -5 -5 -5 -5 -5 -5 -5 ---------- Run | Scr Mat Mat Mat Fac Fac Low Low Fac Was Fac Ext Cet Arc Hub Machines Disabled 31 | . . 1 . 3 8 . . . . 4 7 2 1 5 Max in Single Turn 5 | . . 1 . 2 3 . . . . 1 2 1 1 5 Garrison Access 2 | . . . . . 1 . . . . . . . . 1 Network Hub 1 | . . . . . . . . . . . . . . 1 Machines Sabotaged . | . . . . . . . . . . . . . . . Garrisons Compromised . | . . . . . . . . . . . . . . . Overloaded Fab Kills . | . . . . . . . . . . . . . . . Fab Network Shutdowns . | . . . . . . . . . . . . . . . Hacking | -11 -10 -9 -8 -7 -6 -6 -6 -5 -5 -5 -5 -5 -5 -5 --------- Run | Scr Mat Mat Mat Fac Fac Low Low Fac Was Fac Ext Cet Arc Hub Machines Accessed 48 | . 6 4 2 3 11 . . 1 . 2 10 2 1 6 Terminals 32 | . 5 3 1 2 4 . . . . 1 9 2 . 5 Fabricators 3 | . . . . 1 2 . . . . . . . . . Repair Stations 5 | . . . . . 4 . . 1 . . . . . . Recycling Units 4 | . 1 . 1 . . . . . . 1 1 . . . Scanalyzers 1 | . . 1 . . . . . . . . . . . . Garrison Access 2 | . . . . . 1 . . . . . . . . 1 Total Hacks 124 | . 17 14 2 4 30 . . 2 . 2 26 7 3 17 Successful 87 | . 15 10 1 4 23 . . 2 . 1 15 3 3 10 Failed 37 | . 2 4 1 . 7 . . . . 1 11 4 . 7 Catastrophic 1 | . . 1 . . . . . . . . . . . . Database Lockouts . | . . . . . . . . . . . . . . . Manual 3 | . . . . . . . . . . . . 1 2 . Terminals 84 | . 16 8 1 3 11 . . . . 1 22 7 . 15 Fabricators 6 | . . . . 1 5 . . . . . . . . . Repair Stations 15 | . . . . . 13 . . 2 . . . . . . Recycling Units 7 | . 1 . 1 . . . . . . 1 4 . . . Scanalyzers 6 | . . 6 . . . . . . . . . . . . Garrison Access 3 | . . . . . 1 . . . . . . . . 2 Terminal Hacks 58 | . 14 4 1 3 9 . . . . 1 11 3 3 9 Record 25 | . 5 3 . 2 4 . . . . . 2 3 3 3 Part Schematic 3 | . . . . . 1 . . . . . . . . 2 Robot Schematic 1 | . . . . . . . . . . . 1 . . . Robot Analysis 1 | . . . . 1 . . . . . . . . . . Prototype ID Bank 1 | . 1 . . . . . . . . . . . . . Open Door 7 | . . . . . . . . . . 1 6 . . . Branch Access Points 1 | . . . . . 1 . . . . . . . . . Machine Index 1 | . 1 . . . . . . . . . . . . . Alert Level 2 | . 1 . . . 1 . . . . . . . . . Unreport Threat 4 | . . 1 1 . 1 . . . . . 1 . . . Locate Traps 1 | . 1 . . . . . . . . . . . . . Disarm Traps 2 | . 2 . . . . . . . . . . . . . Dispatch Records 2 | . 1 . . . . . . . . . 1 . . . Maintenance Status 1 | . . . . . 1 . . . . . . . . . Patrol Status 2 | . 1 . . . . . . . . . . . . 1 Assault Status 1 | . 1 . . . . . . . . . . . . . Recall Investigation 2 | . . . . . . . . . . . . . . 2 Recall Reinforcements 1 | . . . . . . . . . . . . . . 1 Fabricator Hacks 6 | . . . . 1 5 . . . . . . . . . Network Status 1 | . . . . . 1 . . . . . . . . . Load Schematic 2 | . . . . . 2 . . . . . . . . . Build 3 | . . . . 1 2 . . . . . . . . . Repair Station Hacks 10 | . . . . . 8 . . 2 . . . . . . Scan Component 6 | . . . . . 5 . . 1 . . . . . . Repair 4 | . . . . . 3 . . 1 . . . . . . Recycling Unit Hacks 5 | . 1 . . . . . . . . . 4 . . . Recycle Component 2 | . 1 . . . . . . . . . 1 . . . Process 1 | . . . . . . . . . . . 1 . . . Retrieve Components 2 | . . . . . . . . . . . 2 . . . Scanalyzer 6 | . . 6 . . . . . . . . . . . . Insert Component 3 | . . 3 . . . . . . . . . . . . Analyze 3 | . . 3 . . . . . . . . . . . . Garrison Access Hacks 2 | . . . . . 1 . . . . . . . . 1 Seal Access 2 | . . . . . 1 . . . . . . . . 1 Unauthorized Hacks . | . . . . . . . . . . . . . . . Terminals . | . . . . . . . . . . . . . . . Fabricators . | . . . . . . . . . . . . . . . Repair Stations . | . . . . . . . . . . . . . . . Recycling Units . | . . . . . . . . . . . . . . . Scanalyzers . | . . . . . . . . . . . . . . . Garrison Access . | . . . . . . . . . . . . . . . Data Cores Recovered 2 | . . . . . 1 . . . . . 1 . . . Used 1 | . . . . . . . . . . . 1 . . . Hacking Detections 29 | . 5 3 1 . 6 . . 1 . . 6 2 . 5 Full Trace Events 8 | . 1 2 . . 2 . . . . . 1 1 . 1 Feedback Events . | . . . . . . . . . . . . . . . Feedback Blocked . | . . . . . . . . . . . . . . . Robot Schematics Acquired 1 | . . . . . . . . . . . 1 . . . Robots Built . | . . . . . . . . . . . . . . . Matter . | . . . . . . . . . . . . . . . Time . | . . . . . . . . . . . . . . . Total Robot Build Rating . | . . . . . . . . . . . . . . . Part Schematics Acquired 6 | . . 3 . . 1 . . . . . . . . 2 Parts Built 4 | . . . . 1 3 . . . . . . . . . Matter 724 | . . . . 234 490 . . . . . . . . . Time 244 | . . . . 58 186 . . . . . . . . . Total Part Build Rating 30 | . . . . 7 23 . . . . . . . . . Parts Repaired 4 | . . . . . 3 . . 1 . . . . . . Time 116 | . . . . . 66 . . 50 . . . . . . Parts Recycled 2 | . 1 . . . . . . . . . 1 . . . Recycled Matter 198 | . . . . . . . . . . . 198 . . . Retrieved Matter . | . . . . . . . . . . . . . . . Retrieved Components . | . . . . . . . . . . . . . . . Parts Scanalyzed 3 | . . 3 . . . . . . . . . . . . Part Schematics Acquired 3 | . . 3 . . . . . . . . . . . . Parts Damaged 1 | . . 1 . . . . . . . . . . . . Bothacking | -11 -10 -9 -8 -7 -6 -6 -6 -5 -5 -5 -5 -5 -5 -5 ------------ Run | Scr Mat Mat Mat Fac Fac Low Low Fac Was Fac Ext Cet Arc Hub Used RIF Installer . | . . . . . . . . . . . . . . . Robots Hacked . | . . . . . . . . . . . . . . . Non-combat . | . . . . . . . . . . . . . . . Combat . | . . . . . . . . . . . . . . . Robot Hacks Applied . | . . . . . . . . . . . . . . . Relay Couplers Released . | . . . . . . . . . . . . . . . Robots Rewired . | . . . . . . . . . . . . . . . Allies Hacked . | . . . . . . . . . . . . . . . Hacks Repelled . | . . . . . . . . . . . . . . . Allies | -11 -10 -9 -8 -7 -6 -6 -6 -5 -5 -5 -5 -5 -5 -5 -------- Run | Scr Mat Mat Mat Fac Fac Low Low Fac Was Fac Ext Cet Arc Hub Total Allies 29 | . . . . . . . . . 20 3 6 . . . Largest Group 20 | . . . . . . . . . 20 10 3 1 1 . Highest-Rated Group 745 | . . . . . . . . . 745 329 218 150 150 . Highest-Rated Ally 156 | . . . . . . . . . 50 50 156 150 150 . Total Orders . | . . . . . . . . . . . . . . . Ally Attacks 194 | . . . . . . . . . 49 37 59 49 . . Total Damage 4322 | . . . . . . . . . 800 1543 1165 814 . . Kills 30 | . . . . . . . . . 2 9 12 7 . . Allies Corrupted 1 | . . . . . . . . . . . 1 . . . Allies Melted . | . . . . . . . . . . . . . . . Intel | -11 -10 -9 -8 -7 -6 -6 -6 -5 -5 -5 -5 -5 -5 -5 ------- Run | Scr Mat Mat Mat Fac Fac Low Low Fac Was Fac Ext Cet Arc Hub Robot Analysis Total 1 | . . . . 1 . . . . . . . . . . Derelict Logs Recovered 2 | . . . . . . 2 . . . . . . . . Drone Launches . | . . . . . . . . . . . . . . . Drone Recoveries . | . . . . . . . . . . . . . . . Exploration | -11 -10 -9 -8 -7 -6 -6 -6 -5 -5 -5 -5 -5 -5 -5 ------------- Run | Scr Mat Mat Mat Fac Fac Low Low Fac Was Fac Ext Cet Arc Hub Turns Passed 14308 | 64 712 942 644 1725 4125 879 107 649 292 597 2021 715 267 569 Spaces Moved 9233 | 51 421 435 320 1221 2638 779 98 219 206 406 1482 380 199 378 Core 29 | 29 . . . . . . . . . . . . . . Treads . | . . . . . . . . . . . . . . . Legs 254 | 22 232 . . . . . . . . . . . . . Wheels 8950 | . 189 435 320 1221 2638 779 98 219 206 406 1482 380 199 378 Hover . | . . . . . . . . . . . . . . . Flight . | . . . . . . . . . . . . . . . Fastest Speed 50 | 50 100 90 86 86 93 100 100 100 110 110 110 100 110 110 Average Speed 101 | 93 111 97 87 86 98 100 100 101 110 110 110 109 110 110 Slowest Speed 150 | 150 120 100 100 93 110 100 100 110 110 110 110 110 110 110 Overloaded Moves . | . . . . . . . . . . . . . . . Propulsion Burnouts . | . . . . . . . . . . . . . . . Robots Hopped . | . . . . . . . . . . . . . . . Cave-ins Triggered . | . . . . . . . . . . . . . . . Exploration Rate (%) 46 | 3 60 37 23 23 47 80 18 7 76 9 98 79 100 36 Regions Visited 14 Branch Regions 6 Pre-discovered Areas 1 | . . . . . . 1 . . . . . . . . Known Exits Taken 12 | 1 1 1 1 1 1 1 1 . . 1 1 1 1 . Unknown Exits Taken . | . . . . . . . . . . . . . . . Scrap Searched 2 | . . . . . . 2 . . . . . . . . Spaces Dug 9 | . . . . . 4 . . . . . 2 . . 3 Terrain Destroyed 376 | . . . . 44 70 6 . . 5 3 48 3 7 190 Melee . | . . . . . . . . . . . . . . . Projectile 113 | . . . . . 12 6 . . 5 3 48 3 7 29 AOE 263 | . . . . 44 58 . . . . . . . . 161 Actions | -11 -10 -9 -8 -7 -6 -6 -6 -5 -5 -5 -5 -5 -5 -5 --------- Run | Scr Mat Mat Mat Fac Fac Low Low Fac Was Fac Ext Cet Arc Hub Total 13548 | 61 620 919 649 1821 4028 862 107 647 236 550 1720 611 220 497 Wait 3643 | . 154 436 296 536 1228 63 10 418 11 134 86 182 . 89 Move 9220 | 50 420 434 319 1220 2637 778 97 219 205 405 1481 379 198 378 Hop . | . . . . . . . . . . . . . . . Pick Up 39 | 2 4 3 3 3 17 1 . 2 . 1 3 . . . Fast Attach 25 | 6 7 3 2 1 1 1 . 2 . 1 . 1 . . Attach 12 | 1 . 1 . 1 8 . . 1 . . . . . . Detach 1 | . . . . . . . . 1 . . . . . . Swap 39 | 1 2 4 5 5 16 1 . 1 . . 4 . . . Drop 34 | . 2 4 2 5 15 1 . 3 . 1 1 . . . Fire 369 | 1 25 24 17 43 75 7 . . 14 5 82 41 17 18 Melee . | . . . . . . . . . . . . . . . Ram 12 | . . 1 1 4 4 . . . . . 1 . . 1 Kick . | . . . . . . . . . . . . . . . Crush . | . . . . . . . . . . . . . . . Escape Stasis 32 | . . . . . . . . . . . 24 . . 8 Rewire 2 | . . . . . . . . . . . 2 . . . Trap . | . . . . . . . . . . . . . . . Miscellaneous 120 | . 6 9 4 3 27 10 . . 6 3 36 8 5 3 Route ------- -11/Scrapyard -10/Materials (discovered 2 exits: *Mat / *Min) -9/Materials -8/Materials -7/Factory -6/Factory (discovered 4 exits: *Fac x2 / *Low x2) -6/Lower Caves -6/Lower Caves -5/Factory -5/Waste -5/Factory -5/Extension (discovered 2 exits: *Fac / *Cet) -5/Cetus (discovered 3 exits: *Fac x2 / *Arc) -5/Archives (discovered 3 exits: *Fac / *Hub x2) -5/Hub_04(d) (discovered 1 exit: *Fac) History --------- Turn | Location | Event 1 | -11/Scrapyard | Upgraded with Propulsion slot (x1) 1 | -11/Scrapyard | Upgraded with Utility slot (x1) 1 | -11/Scrapyard | Upgraded with Weapon slot (x1) 2 | -11/Scrapyard | Identified exit to Materials 2 | -11/Scrapyard | Discovered exit to Materials (range 17) 65 | -11/Scrapyard | Entered Materials 141 | -10/Materials | Identified exit to Mines 141 | -10/Materials | Discovered exit to Mines (range 17) 307 | -10/Materials | Build established: Hacker-Mutant 577 | -10/Materials | Identified exit to Materials 577 | -10/Materials | Discovered exit to Materials (range 3) 777 | -10/Materials | Entered another Materials area 779 | -9/Materials | Reached level 2 779 | -9/Materials | Reached level 3 779 | -9/Materials | Reached level 4 780 | -9/Materials | Upgraded with Power slot (x1) 780 | -9/Materials | Upgraded with Utility slot (x2) 1513 | -9/Materials | Identified exit to Materials 1513 | -9/Materials | Discovered exit to Materials (range 5) 1719 | -9/Materials | Entered another Materials area 1721 | -8/Materials | Reached level 5 1721 | -8/Materials | Reached level 6 1721 | -8/Materials | Reached level 7 1724 | -8/Materials | Upgraded with Propulsion slot (x1) 1724 | -8/Materials | Upgraded with Weapon slot (x1) 2360 | -8/Materials | Identified exit to Factory 2360 | -8/Materials | Discovered exit to Factory (range 3) 2363 | -8/Materials | Entered Factory 2365 | -7/Factory | Reached level 8 2365 | -7/Factory | Reached level 9 2403 | -7/Factory | Build established: Hacker-Skirmisher 2931 | -7/Factory | Reached level 10 3098 | -7/Factory | Fabricated Adv. Transmission Jammer (x1) 3634 | -7/Factory | Build established: Hacker-Gunner 3928 | -7/Factory | Upgraded with Weapon slot (x1) 4079 | -7/Factory | Identified exit to Factory 4079 | -7/Factory | Discovered exit to Factory (range 10) 4088 | -7/Factory | Entered another Factory area 4090 | -6/Factory | Reached level 11 4090 | -6/Factory | Reached level 12 4090 | -6/Factory | Reached level 13 4090 | -6/Factory | Upgraded with Utility slot (x1) 4551 | -6/Factory | Fabricated Linear Accelerator (x2) 4692 | -6/Factory | Identified exit to Lower Caves 5114 | -6/Factory | Fabricated Adv. Cryofiber Web (x1) 5262 | -6/Factory | Build established: Hacker-Skirmisher 5676 | -6/Factory | Build established: Hacker-Gunner 5763 | -6/Factory | Reached level 14 5852 | -6/Factory | Upgraded with Propulsion slot (x1) 6402 | -6/Factory | Reached level 15 6414 | -6/Factory | Repaired Nuclear Core 7075 | -6/Factory | Identified exit to Factory 7075 | -6/Factory | Discovered exit to Factory (range 12) 7755 | -6/Factory | Discovered exit to Factory (range 10) 7875 | -6/Factory | Repaired Minigun 7921 | -6/Factory | Repaired Imp. Sensor Array? 8015 | -6/Factory | Reached level 16 8186 | -6/Factory | Spotted B-75 Beast 8213 | -6/Factory | Entered Lower Caves 8297 | -6/Lower Caves | Build established: Hacker-Mutant 8759 | -6/Lower Caves | Build established: Hacker-Gunner 8830 | -6/Lower Caves | Learned location of 1 exit from Factory 8898 | -6/Lower Caves | Spotted B-75 Beast 9039 | -6/Lower Caves | Identified exit to Lower Caves 9039 | -6/Lower Caves | Discovered exit to Lower Caves (range 8) 9092 | -6/Lower Caves | Entered another Lower Caves area 9094 | -6/Lower Caves | Reached level 17 9159 | -6/Lower Caves | Discovered exit to Factory (range 16) 9199 | -6/Lower Caves | Entered Factory 9200 | -5/Factory | Identified exit to Factory 9201 | -5/Factory | Reached level 18 9201 | -5/Factory | Upgraded with Power slot (x1) 9755 | -5/Factory | Repaired Magnetic Acceleration Cannon 9848 | -5/Factory | Sucked down chute 9848 | -5/Factory | Entered Waste 9849 | -5/Waste | Met a frightened Derelict 9861 | -5/Waste | Spotted C-40 Crusher 9870 | -5/Waste | Destroyed C-40 Crusher 9878 | -5/Waste | Destroyed C-40 Crusher 9888 | -5/Waste | Spotted C-40 Crusher 9902 | -5/Waste | Spotted C-40 Crusher 9906 | -5/Waste | Destroyed C-40 Crusher 9906 | -5/Waste | Destroyed C-40 Crusher 9920 | -5/Waste | Spotted C-40 Crusher 9921 | -5/Waste | Allies destroyed C-40 Crusher 10082 | -5/Waste | Warlord forces began an assault 10117 | -5/Waste | Identified exit to Factory 10117 | -5/Waste | Discovered exit to Factory (range 20) 10140 | -5/Waste | Entered Factory 10140 | -5/Factory | Accompanied by 10 allies 10383 | -5/Factory | P-70 Sage assimilated allied 61-RFS(s) 10516 | -5/Factory | Reached level 19 10662 | -5/Factory | Identified exit to Extension 10662 | -5/Factory | Discovered exit to Extension (range 5) 10679 | -5/Factory | Allied Derelicts emerged from ambush trap array 10737 | -5/Factory | Entered Extension 10737 | -5/Extension | Accompanied by 1 ally 10816 | -5/Extension | Build established: Generator-Mutant 10823 | -5/Extension | Spotted B-75 Beast 11089 | -5/Extension | Reached level 20 11383 | -5/Extension | Build established: Generator-Skirmisher 11397 | -5/Extension | Rescued a captive Derelict 11415 | -5/Extension | Rescued a captive Derelict 11514 | -5/Extension | Rescued a captive Derelict 11539 | -5/Extension | Destroyed B-75 Beast 11601 | -5/Extension | Spotted B-75 Beast 11637 | -5/Extension | Destroyed B-75 Beast 11710 | -5/Extension | Rescued A7 11750 | -5/Extension | Rescued a captive Derelict 11769 | -5/Extension | Rescued a captive Derelict 11868 | -5/Extension | Reached level 21 12084 | -5/Extension | Discovered exit to Factory (range 10) 12085 | -5/Extension | Identified exit to Cetus 12085 | -5/Extension | Discovered exit to Cetus (range 6) 12437 | -5/Extension | Disrupted transfer network 12758 | -5/Extension | Entered Cetus 12758 | -5/Cetus | Accompanied by 1 ally 12763 | -5/Cetus | Acquired a Cetus Manufacturing Module code from A7 12769 | -5/Cetus | Spotted Cetus Guard 12769 | -5/Cetus | Spotted Cetus Guard 12773 | -5/Cetus | Destroyed Cetus Guard 12773 | -5/Cetus | Spotted Cetus Guard 12777 | -5/Cetus | Allies destroyed Cetus Guard 12783 | -5/Cetus | Destroyed Cetus Guard 12784 | -5/Cetus | Spotted Cetus Guard 12790 | -5/Cetus | Destroyed Cetus Guard 12916 | -5/Cetus | Discovered exit to Factory (range 20) 13089 | -5/Cetus | Build established: Generator-Mutant 13272 | -5/Cetus | Reached level 22 13310 | -5/Cetus | Identified exit to Archives 13310 | -5/Cetus | Discovered exit to Archives (range 20) 13368 | -5/Cetus | Spotted Cetus Guard 13369 | -5/Cetus | Spotted Cetus Guard 13371 | -5/Cetus | Spotted Cetus Guard 13376 | -5/Cetus | Destroyed Cetus Guard 13385 | -5/Cetus | Allies destroyed Cetus Guard 13386 | -5/Cetus | Destroyed Cetus Guard 13386 | -5/Cetus | Spotted Cetus Guard 13393 | -5/Cetus | Destroyed Cetus Guard 13401 | -5/Cetus | Discovered exit to Factory (range 20) 13411 | -5/Cetus | Met Revision 17 13473 | -5/Cetus | Entered Archives 13473 | -5/Archives | Accompanied by 1 ally 13550 | -5/Archives | Discovered exit to Factory (range 20) 13554 | -5/Archives | Identified exit to Hub_04(d) 13554 | -5/Archives | Discovered exit to Hub_04(d) (range 15) 13571 | -5/Archives | Unable to access archive contents 13582 | -5/Archives | Unable to access archive contents 13593 | -5/Archives | Unable to access archive contents 13599 | -5/Archives | Discovered exit to Hub_04(d) (range 21) 13606 | -5/Archives | Unable to access archive contents 13740 | -5/Archives | Entered Hub_04(d) 13740 | -5/Hub_04(d) | Discovered exit to Factory (range 11) 13832 | -5/Hub_04(d) | Build established: Hacker-Gunner 13896 | -5/Hub_04(d) | Spotted B-75 Beast 14117 | -5/Hub_04(d) | Network Hub disabled 14117 | -5/Hub_04(d) | Reached level 23 14248 | -5/Hub_04(d) | Spotted Lightning 14248 | -5/Hub_04(d) | Spotted Lightning 14249 | -5/Hub_04(d) | Spotted Lightning 14282 | -5/Hub_04(d) | Core integrity fell below 50% 14283 | -5/Hub_04(d) | Spotted Lightning 14287 | -5/Hub_04(d) | Spotted Lightning 14288 | -5/Hub_04(d) | Spotted Lightning 14289 | -5/Hub_04(d) | Destroyed Lightning 14297 | -5/Hub_04(d) | Core integrity fell below 20% 14299 | -5/Hub_04(d) | System corruption reached 10% 14309 | -5/Hub_04(d) | Destroyed by Lightning with EMDS Last Messages --------------- 14297_ Penetrated by EMDS Slug. [Achievement: System Compromised] 14300_ EMDS Slug penetrates Wall. 14303_ Penetrated by EMDS Slug. 14303_ Slug penetrates Wall. 14303_ Slug penetrates Lightning. 14303_ Slug penetrates Wall. 14303_ Slug penetrates Lightning. 14303_ Lightning knocked back. 14304_ Penetrated by EMDS Slug. 14304_ EMDS Slug penetrates Wall. 14305_ I-47 Archangel distress signal jammed. 14305_ EMDS Slug penetrates Wall. 14306_ I-47 Archangel distress signal jammed. 14306_ System corrupted: Enh. Coil Gun jammed. 14306_ Slug penetrates I-47 Archangel. 14306_ I-47 Archangel destroyed. 14307_ EMDS Slug penetrates Wall. [Achievement: 5k Club] [Achievement: 10k Club] Map ----- +----------------------------------------------------+ | < + ## " " | | ^^ % # ## " " | | ########^ # ## " [ %[ " | | ???????## ## ## """" """"" | | ????????# ## ## "==" | | ????????# ## = #### " %" ## | | ????????# ##############"####" [" ###? | | ????????# #### """T""" # ! = " #??? | | ??????### k T## # "##??? | | ??????#"" ""## " " " " #*! #???? | | ??????#T #### " " " " +%= #???? | | ??????### #### " " " " #! ##??? | | ######### T## # "#??? | | # ""## # ###=""""###? | | = " " " # #### ! # #%*%! #? | | " " " # #########+#### ##!= "#? | | " " " # # % # ## "#? | | # # "" " " " # ##! "#? | | " " " + C+ "G " " " # i## T#? | | " " " # # "" " " " # ## "#? | | " " " # # # ## "#? | | # ######+####### ## "#? | | ######### ###### #?????# ## #? | | ???= ?# ###???# ##"""""""##? | | ???? # ##### ## ##?? | | ? k Y"## @BB### # ###??? | | # R !!!T###hBB#?##?##????? | | ????# !]= !! "#?## =#??????????? | | ???????### /]! !! #####h=%#?????????? | | ???????# /] u !;#????????? | | ???????# ;#????????? | | ???????### ##????????? | | ?????????# ""#"" #??####???? | | ???????###+##### #? ####? | | ???????# ######/#""#### ## """#? | | ???????# "# ! ## "#? | | ???????# "# ## R "#? | | ???????#! "# " " " " " ## "#? | | ???????# k # " " " " " ##" ;;# """#? | | ???????# "# " " " " " #?" # # ####? | | ???????# k"# ### ###?####???? | | ???????# =k"#####"########"+###????????? | | ???????# ## ! R #????????? | | ###????# "## #????????? | | ???# "## #????????? | | " "???# "## u #????????? | | " " ??# ## #????????? | | " " ###+##### #????????? | | / " #????????? | | " " # ^ # #????????? | +----------------------------------------------------+ Best States ------------- Heat Dissipation 86 Energy Generation 60 Energy Capacity 1025 Matter Stores 900 Matter Capacity 900 Sight Range 24 Robot Scan Range 29 Terrain Scan Density 710 ECM Strength 3 Jamming Range 16 Armor Coverage 225 Resistance: KI 55 Resistance: TH 50 Resistance: EX 50 Resistance: EM 35 Resistance: I 35 Resistance: S 35 Resistance: P 35 Evasion (%) 50 Matter Filtering 30 Kinecelleration 40 Offensive Hacking 20 Defensive Hacking 5 Item Schematics ----------------- Hvy. Assault Rifle | -9/Materials | Scanalyzed Aluminum Leg | -9/Materials | Scanalyzed Ion Engine | -9/Materials | Scanalyzed Adv. Cryofiber Web | -6/Factory | Hacked Mass Driver | -5/Hub_04(d) | Hacked Dispersion Rifle | -5/Hub_04(d) | Hacked Robot Schematics ------------------ Y-64 Sentinel | -5/Extension | Hacked Fabricated ------------ Adv. Transmission Jammer | x1 | -7/Factory | Preloaded Linear Accelerator | x2 | -6/Factory | Preloaded Adv. Cryofiber Web | x1 | -6/Factory Alien Tech Used ----------------- None Achievements -------------- 10k Club 5k Club Collateral Damage Dynamic Key GoHome() Hey, That's Mine! I Spy Just What I Needed Knowing Is Half The Battle No Signal Please Form A Line Prison Break Remodeling Revising The Future Serviceable Loadout Sniper System Compromised The More The Merrier Total Silence We Are Legion Challenges ------------ None RPGLIKE | -11 -10 -9 -8 -7 -6 -6 -6 -5 -5 -5 -5 -5 -5 -5 --------- Run | Scr Mat Mat Mat Fac Fac Low Low Fac Was Fac Ext Cet Arc Hub Levels Raised 22 | . . 3 3 3 6 . 1 1 . 1 2 1 . 1 XP Earned 39030 | 6000 1210 4742 4162 4856 7582 1100 500 1500 230 1352 3394 1354 302 746 XP Spent 37415 | 5975 . 4500 4500 4505 8975 . 1545 1375 . . 4595 . 1445 . Upgrades 99 | 19 . 8 14 13 19 . 8 3 . . 11 . 4 . Power Slot 2 | . . 1 . . . . . 1 . . . . . . Propulsion Slot 3 | 1 . . 1 . 1 . . . . . . . . . Utility Slot 4 | 1 . 2 . . 1 . . . . . . . . . Weapon Slot 3 | 1 . . 1 1 . . . . . . . . . . Core Integrity 9 | 1 . . 2 1 2 . 3 . . . . . . . Heat Dissipation 8 | 1 . . 1 3 2 . . . . . 1 . . . Energy Generation 3 | 2 . . . . 1 . . . . . . . . . Energy Storage 6 | 1 . . 1 . 2 . 2 . . . . . . . Matter Storage 4 | 1 . . 1 . . . 2 . . . . . . . Mass Support 2 | . . . 2 . . . . . . . . . . . Inventory Capacity 4 | 2 . 1 . . . . . . . . 1 . . . Sight Range 5 | 1 . . . 1 2 . . . . . 1 . . . Sensor Range 14 | 1 . . 3 1 4 . . 2 . . 2 . 1 . Terrain Scan Density 7 | 1 . . . 1 1 . 1 . . . 1 . 2 . Ranged Accuracy 6 | 3 . 1 2 . . . . . . . . . . . Hack Defense % 1 | . . . . 1 . . . . . . . . . . KI Resistance % 4 | . . 1 . . 1 . . . . . 1 . 1 . TH Resistance % 3 | . . 2 . . . . . . . . 1 . . . EX Resistance % 3 | . . . . . . . . . . . 3 . . . KI Damage % 4 | 2 . . . 1 1 . . . . . . . . . TH Damage % 4 | . . . . 3 1 . . . . . . . . . Protomatter Created 2150 | . 79 162 53 144 383 101 . . 98 21 363 357 277 112 Integrity Restored 2497 | . 122 167 72 68 600 220 . . 113 63 753 142 112 65 Core 2373 | . 122 128 72 68 600 220 . . 28 63 753 142 112 65 Parts 124 | . . 39 . . . . . . 85 . . . . . Protomatter Decayed 1745 | . 24 102 29 121 183 27 . . 152 40 395 393 239 40 Game ------ Seed OverloadBarrageStabilizer Manual? 0 Play Time 03:27:35 Cumulative 8.7 hours Start 2019.12.31 @ 20:21:55 End 2020.01.01 @ 20:19:56 Sessions 7 Manual Loads 0 Difficulty Explorer Special Mode Winter2019/RPGLIKE Game No. 17 Rogue 14 Adventurer 0 Explorer 3 Win Type - Total 0 Types 0/0/0/0/0/0/0 Lore% 6 Gallery% 14 Achievement% 14 Wizard Run 0 Options --------- ASCII 0 Keyboard 0 Movement Numpad Keybinds 0 Fullscreen 1 Font 18/SmallcapsGlow Map View 76x50 Tactical HUD 1 Map Filters NONE Filters NONE Steam 1 RUN: e1a29840-7329-44d7-b457-e7a3d2e2e184